Workbook

Sheet 附件1
A1: 附件1
A2: 2022年江门市衔接推进乡村振兴工作资金（第三批）安排汇总表
N3: 单位：万元
A4: 序号 | B4: 项目名称 | C4: 小计 | D4: 江门市农业农村局 （市乡村振兴局） | E4: 江门市人力资源和社会保障局 | F4: 江门市供销合作联社 | G4: 蓬江区 | H4: 江海区 | I4: 新会区 | J4: 台山市 | K4: 开平市 | L4: 鹤山市 | M4: 恩平市 | N4: 备注
A5: 合计 | C5: =C6+C9+C10+C11+C12 -> 3,729 | D5: 125 | E5: 80 | F5: 24 | G5: 20 | H5: 0 | I5: 160 | J5: 1,042 | K5: 1,014 | L5: 199 | M5: 1,065 | N5: 结合江乡振局函〔2022〕5、6、7、8号文件要求安排。
A6: 一 | B6: 提升村级集体经济发展专项资金 | C6: =C7+C8 -> 3,000 | I6: =I7+I8 -> 120 | J6: =J7+J8 -> 897 | K6: =K7+K8 -> 934 | L6: =L7+L8 -> 119 | M6: =M7+M8 -> 930 | N6: 具体项目和绩效目标由市农业农村局（市乡村振兴局）另文下达。
A7: （一） | B7: 扶持薄弱村发展壮大集体经济资金 | C7: =SUM(D7:M7) -> 2,640 | I7: 80 | J7: 785 | K7: 830 | L7: 95 | M7: 850 | N7: 详见附件2。
A8: （二） | B8: “三结对”重点帮扶资金 | C8: =SUM(D8:M8) -> 360 | I8: 40 | J8: 112 | K8: 104 | L8: 24 | M8: 80 | N8: 2022年我市222条薄弱村共涉45 个镇（街），按每个镇安排8万元的标准划拨到各县（市、区）。
A9: 二 | B9: 扶持本市革命老区发展和农户发展生产专项资金（含烈士后裔助学金市级补助资金） | C9: =SUM(D9:M9) -> 500 | G9: 20 | I9: 40 | J9: 145 | K9: 80 | L9: 80 | M9: 135 | N9: 具体项目和绩效目标由市农业农村局（市乡村振兴局）另文下达。
A10: 三 | B10: 实施“粤菜师傅”“广东技工”“南粤家政”三项工程专项资金 | C10: =SUM(D10:M10) -> 80 | E10: 80 | N10: 具体项目和绩效目标由市农业农村局（市乡村振兴局）另文下达。
A11: 四 | B11: 消费帮扶专项资金 | C11: 63 | D11: 39 | F11: 24 | N11: 具体项目和绩效目标由市农业农村局（市乡村振兴局）另文下达。
A12: 五 | B12: 业务经费（含东西部协作经费） | C12: =SUM(C13:C14) -> 86 | D12: =SUM(D13:D14) -> 86
A13: （一） | B13: 工作经费（含东西部协作经费） | C13: 70 | D13: 70
A14: （二） | B14: 扶贫济困日工作经费 | C14: 16 | D14: 16

Sheet 附件2
A1: 附件2
A2: 江门市2022年扶持薄弱村发展壮大集体经济资金安排表
E3: 单位：万元
A4: 序号 | B4: 县（市、区） | C4: 支出内容 | D4: 金额 | E4: 备注
A5: 合计 | D5: =SUM(D6:D10) -> 2,640.00
A6: 1 | B6: 新会区 | C6: 用于新会区薄弱村共6个，其中试点村2个发展经济项目 | D6: 80.00
A7: 2 | B7: 台山市 | C7: 用于台山市薄弱村共66个，其中试点村27个发展经济项目 | D7: 785.00
A8: 3 | B8: 开平市 | C8: 用于开平市薄弱村共73个，其中试点村30个发展经济项目 | D8: 830.00
A9: 4 | B9: 鹤山市 | C9: 用于鹤山市薄弱村共8个，其中试点村3个发展经济项目 | D9: 95.00
A10: 5 | B10: 恩平市 | C10: 用于恩平市薄弱村共69个，其中试点村29个发展经济项目 | D10: 850.00
A11: 备注：实施项目由各县（市、区）农业农村局（乡村振兴局）会同有关部门根据实际情况确定，并将具体使用计划报市农业农村局（市乡村振兴局）备案。
